bitfinex/quotes_BTCUSD_20240620
["timestamp","ask_amount","ask_price","bid_price","bid_amount"]
[1718876242928,0.00086,65834.0,65833.0,0.2323188]
[1718876243127,0.00086,65834.0,65833.0,0.2313188]
[1718876243471,0.00086,65834.0,65833.0,0.2333188]
[1718876243890,0.1148403,65834.0,65833.0,0.2333188]
[1718876244188,0.10086,65834.0,65833.0,0.0100388]
[1718876244454,5.14140146,65834.0,65833.0,0.0100388]
[1718876244647,5.51898096,65834.0,65833.0,0.004]
[1718876244803,0.54677448,65834.0,65833.0,0.004]
[1718876245005,0.21722152,65834.0,65833.0,0.004]
[1718876245335,0.21722152,65834.0,65833.0,0.002]
[1718876245536,0.21822152,65834.0,65833.0,0.003]
[1718876245739,0.30597134,65834.0,65833.0,0.002]
[1718876246142,0.26582698,65834.0,65833.0,0.003]
[1718876246340,0.26582698,65834.0,65833.0,0.002]
[1718876246341,0.22836546,65834.0,65833.0,0.002]
[1718876246541,0.22736546,65834.0,65833.0,0.002]
[1718876246751,0.17986546,65834.0,65827.0,0.000946]
[1718876247069,0.0586,65828.0,65827.0,0.000946]
[1718876247222,0.13114436,65828.0,65827.0,0.000946]
[1718876247421,0.19,65828.0,65827.0,0.000946]
[1718876247842,0.19,65828.0,65827.0,0.001946]
[1718876248285,5.323563,65828.0,65827.0,0.014326]
[1718876248488,5.33619035,65828.0,65827.0,0.013326]
[1718876248708,0.42215435,65828.0,65827.0,0.013326]
[1718876248931,0.1816,65828.0,65827.0,0.013326]
[1718876249127,0.0816,65828.0,65827.0,0.013326]
[1718876249791,5.33619035,65828.0,65827.0,0.013326]
[1718876250392,0.42215435,65828.0,65827.0,0.013326]
[1718876250685,5.095636,65828.0,65827.0,0.013326]
[1718876250879,0.42215435,65828.0,65827.0,0.013326]
[1718876251081,0.1816,65828.0,65827.0,0.013326]
[1718876251304,0.1816,65828.0,65827.0,0.000946]
[1718876251305,5.095636,65828.0,65827.0,0.000946]
[1718876251465,0.4735661,65828.0,65827.0,0.000946]
[1718876251645,5.40022945,65828.0,65827.0,0.000946]
[1718876251849,0.48619345,65828.0,65827.0,0.000946]
[1718876252080,0.39820359,65828.0,65827.0,0.000946]
[1718876252384,0.2083,65828.0,65827.0,0.000946]
[1718876252937,0.34509736,65828.0,65827.0,0.000946]
[1718876253165,0.34509759,65828.0,65827.0,0.000946]
[1718876253540,0.25590546,65828.0,65827.0,0.000946]
[1718876253711,0.2083,65828.0,65827.0,0.000946]
[1718876255003,0.34509759,65828.0,65827.0,0.000946]
[1718876255300,0.2083,65828.0,65827.0,0.000946]
[1718876255540,0.34509759,65828.0,65827.0,0.000946]
[1718876255775,0.2083,65828.0,65827.0,0.000946]
[1718876255963,0.41367361,65828.0,65827.0,0.000946]
[1718876256203,5.44275651,65828.0,65827.0,0.000946]
[1718876256406,5.64813012,65828.0,65827.0,0.000946]
[1718876256788,0.73409412,65828.0,65827.0,0.000946]
[1718876256994,0.52872051,65828.0,65827.0,0.000946]
[1718876257617,0.2083,65828.0,65827.0,0.000946]
[1718876257954,5.16689959,65828.0,65827.0,0.000946]
[1718876258166,0.4582372,65828.0,65827.0,0.000946]
[1718876258601,0.25286359,65828.0,65827.0,0.000946]
[1718876261702,0.22616359,65828.0,65827.0,0.000946]
[1718876261910,0.26596359,65828.0,65827.0,0.000946]
[1718876262140,0.40276118,65828.0,65827.0,0.000946]
[1718876262347,0.26596359,65828.0,65827.0,0.000946]
[1718876263617,0.29366744,65828.0,65827.0,0.000946]
[1718876264394,5.20770344,65828.0,65827.0,0.000946]
[1718876264760,0.49649388,65828.0,65827.0,0.000946]
[1718876264933,5.20770344,65828.0,65827.0,0.000946]
[1718876265141,5.41052988,65828.0,65827.0,0.000946]
[1718876265364,0.48370894,65828.0,65827.0,0.000946]
[1718876265574,5.41037252,65828.0,65827.0,0.000946]
[1718876267080,5.37057252,65828.0,65827.0,0.000946]
[1718876267290,5.37057252,65828.0,65827.0,0.221646]
[1718876270075,5.37057252,65828.0,65827.0,0.2575232]
[1718876270589,0.35760509,65828.0,65827.0,0.2575232]
[1718876270797,0.25867246,65828.0,65827.0,0.26339236]
[1718876271049,0.16756359,65828.0,65827.0,0.26339236]
[1718876272347,0.25867107,65828.0,65827.0,0.26339236]
[1718876273775,0.25967107,65828.0,65827.0,0.26339236]
[1718876274525,0.25967107,65828.0,65827.0,0.23989516]
[1718876275801,0.25867107,65828.0,65827.0,0.23989516]
[1718876276145,0.16756359,65828.0,65827.0,0.23989516]
[1718876276978,0.22616359,65828.0,65827.0,0.23989516]
[1718876277430,0.22616359,65828.0,65827.0,0.22751516]
[1718876277847,0.31727654,65828.0,65827.0,0.23989516]
[1718876278050,0.25867654,65828.0,65827.0,0.26397928]
[1718876278462,0.25867427,65828.0,65827.0,0.26397928]
[1718876279987,0.25867427,65828.0,65827.0,0.26497928]
[1718876280957,0.25867488,65828.0,65827.0,0.24089516]
[1718876281183,0.25867488,65828.0,65827.0,0.24189516]
[1718876283373,0.16756359,65828.0,65827.0,0.24189516]
[1718876285211,0.2814527,65828.0,65827.0,0.22951516]
[1718876285428,0.16756359,65828.0,65827.0,0.22951516]
[1718876285631,0.06756359,65828.0,65827.0,0.22951516]
[1718876286035,0.06756359,65828.0,65827.0,0.223646]
[1718876286241,0.06756359,65828.0,65827.0,0.23000328]
[1718876287640,0.56756359,65828.0,65827.0,0.23000328]
[1718876287843,0.66756359,65828.0,65827.0,0.23000328]
[1718876288042,0.16756359,65828.0,65827.0,0.23000328]
[1718876288399,0.16756359,65828.0,65827.0,0.00930328]
[1718876288989,0.22616359,65828.0,65827.0,0.00930328]
[1718876289892,0.72616359,65828.0,65827.0,0.00930328]
[1718876290492,0.66756359,65828.0,65827.0,0.00930328]
[1718876290698,0.72616359,65828.0,65827.0,0.00930328]
[1718876292393,0.22616359,65828.0,65827.0,0.00930328]
[1718876292958,0.22616359,65828.0,65827.0,0.04531621]
[1718876292959,0.16756359,65828.0,65827.0,0.04531621]
[1718876293178,0.16756359,65828.0,65827.0,0.26311621]
[1718876293400,0.04456359,65828.0,65827.0,0.27311621]
[1718876293592,0.14456359,65828.0,65827.0,0.27311621]
[1718876293764,0.16842305,65828.0,65827.0,0.27311621]
[1718876293968,0.1,65828.0,65827.0,0.27311621]
[1718876294174,0.09123391,65831.0,65829.0,0.24018]
[1718876294175,0.06842305,65830.0,65829.0,0.24018]
[1718876294381,0.11244729,65831.0,65830.0,0.24018]
[1718876294586,0.06842305,65831.0,65830.0,0.23018]
[1718876294792,0.06842305,65831.0,65830.0,0.23604767]
[1718876296220,0.19123391,65832.0,65830.0,0.23604767]
[1718876296430,0.06838521,65831.0,65830.0,0.23604767]
[1718876296577,0.09123391,65832.0,65831.0,0.23018]
[1718876296761,0.1,65833.0,65832.0,0.01238]
[1718876296971,0.1,65833.0,65832.0,0.01873541]
[1718876297430,0.1,65833.0,65832.0,0.14043541]
[1718876297675,0.1,65833.0,65832.0,0.18180296]
[1718876298179,0.1,65833.0,65832.0,0.27790296]
[1718876298376,0.19116395,65833.0,65832.0,0.27790296]
[1718876298890,0.19116395,65833.0,65832.0,0.28090296]
[1718876300205,0.19116395,65833.0,65832.0,0.28390296]
[1718876300405,0.1,65833.0,65832.0,0.28390296]
[1718876300617,0.19116395,65833.0,65832.0,0.28390296]
[1718876300980,0.19115178,65833.0,65832.0,0.28390296]
[1718876301301,0.1586,65833.0,65832.0,0.28390296]
[1718876301501,0.24974858,65833.0,65832.0,0.28390296]
[1718876301705,0.1586,65833.0,65832.0,0.23015541]
[1718876301913,0.1586,65833.0,65832.0,0.24253541]
[1718876302219,0.27253973,65833.0,65832.0,0.24253541]
[1718876302963,0.27253973,65833.0,65832.0,0.02473541]
[1718876303163,0.29553973,65833.0,65832.0,0.23503541]
[1718876303340,0.29553973,65833.0,65832.0,0.22868]
[1718876303553,0.29553973,65833.0,65832.0,0.23503438]
[1718876303762,0.29553973,65833.0,65832.0,0.25799698]
[1718876303965,0.1816,65833.0,65832.0,0.25799698]
[1718876306551,0.1816,65833.0,65832.0,0.15799698]
[1718876306988,0.1816,65833.0,65832.0,0.15999698]
[1718876307401,0.1816,65833.0,65832.0,0.15699698]
[1718876307631,0.1816,65833.0,65832.0,0.15899698]
[1718876307844,3.29404284,65833.0,65832.0,0.01035438]
[1718876308079,3.29404284,65833.0,65827.0,0.000946]
[1718876308080,3.534478,65833.0,65827.0,0.000946]
[1718876308291,0.0586,65828.0,65827.0,0.000946]
[1718876308502,0.1042,65828.0,65827.0,0.000946]
[1718876308699,0.2272,65828.0,65827.0,0.000946]
[1718876308907,0.36394374,65828.0,65827.0,0.000946]
[1718876309121,5.65621799,65828.0,65827.0,0.000946]
[1718876309552,5.65621799,65828.0,65825.0,0.000946]
[1718876309553,4.914036,65827.0,65825.0,0.000946]
[1718876309759,0.22127313,65826.0,65815.0,0.45855736]
[1718876309935,0.14977695,65816.0,65815.0,0.45855736]
[1718876310102,0.27256936,65816.0,65815.0,0.01238]
[1718876310318,0.1586,65816.0,65815.0,0.01848707]
[1718876310517,0.1586,65816.0,65815.0,0.01238]
[1718876310958,0.24976536,65816.0,65815.0,0.01238]
[1718876311373,0.1586,65816.0,65815.0,0.01238]
[1718876311981,0.1586,65816.0,65815.0,0.01638]
[1718876312211,0.1586,65816.0,65815.0,0.01738]
[1718876312416,0.1586,65816.0,65815.0,0.004]
[1718876312417,0.29556936,65816.0,65815.0,0.004]
[1718876312621,0.29556936,65816.0,65815.0,0.01010822]
[1718876312743,0.1816,65816.0,65815.0,0.01410822]
[1718876312949,0.29552585,65816.0,65815.0,0.01410822]
[1718876313166,0.27273782,65816.0,65815.0,0.02248822]
[1718876313381,0.1816,65816.0,65815.0,0.01838]
[1718876313796,0.1816,65816.0,65815.0,0.01638]
[1718876314000,0.1816,65816.0,65815.0,0.01438]
[1718876314001,0.123,65816.0,65815.0,0.01438]
[1718876314208,0.0816,65816.0,65815.0,0.01438]
[1718876314407,0.0816,65816.0,65815.0,0.01638]
[1718876314871,0.0816,65816.0,65815.0,0.01438]
[1718876315313,0.0816,65816.0,65815.0,0.01738]
[1718876316029,0.0816,65816.0,65815.0,0.02301984]
[1718876316166,0.0816,65816.0,65815.0,0.01738]
[1718876316582,0.0816,65816.0,65815.0,0.01538]
[1718876317200,0.0586,65816.0,65815.0,0.052228]
[1718876317411,0.1,65821.0,65820.0,0.01238]
[1718876317616,0.1816,65821.0,65820.0,0.0180155]
[1718876317828,2.1716,65821.0,65820.0,0.0180155]
[1718876318058,2.35724772,65821.0,65820.0,0.01238]
[1718876318270,2.18695971,65821.0,65820.0,0.01238]
[1718876318915,1.8968873,65821.0,65820.0,0.036228]
[1718876319118,1.9554873,65821.0,65820.0,0.036228]
[1718876319344,2.01695971,65821.0,65820.0,0.036228]
[1718876319544,1.87995971,65821.0,65820.0,0.036228]
[1718876319981,1.87995971,65821.0,65820.0,0.037174]
[1718876320932,0.11735971,65821.0,65820.0,0.4146385]
[1718876321151,0.002,65821.0,65820.0,0.9985085]
[1718876321353,0.002,65821.0,65820.0,1.45492862]
[1718876321966,0.002,65821.0,65820.0,1.45592862]
[1718876322374,0.1,65829.0,65828.0,0.22488]
[1718876322587,0.1683146,65832.0,65831.0,0.01238]
[1718876322783,0.1683146,65832.0,65831.0,0.01800705]
[1718876322985,2.263,65832.0,65831.0,0.01800705]
[1718876323198,0.839,65832.0,65831.0,0.01238]
[1718876323407,0.85425693,65832.0,65831.0,0.08753757]
[1718876323652,0.95729698,65832.0,65831.0,0.08753757]
[1718876323860,0.94204005,65832.0,65831.0,0.08753757]
[1718876324083,0.94204005,65832.0,65831.0,0.09053757]
[1718876324513,0.88344005,65832.0,65831.0,0.09053757]
[1718876326288,0.65244005,65832.0,65831.0,0.09053757]
[1718876326458,0.49844005,65832.0,65831.0,0.09053757]
[1718876326891,0.37844005,65832.0,65831.0,0.09053757]
[1718876327102,0.34444005,65832.0,65831.0,0.02147597]
[1718876327499,0.29144005,65832.0,65831.0,0.02147597]
[1718876329831,0.24744005,65832.0,65831.0,0.02147597]
[1718876332135,0.14444005,65832.0,65831.0,0.02147597]
[1718876332315,0.04444005,65832.0,65831.0,0.02147597]
[1718876332521,0.123,65832.0,65831.0,0.32922857]
[1718876332725,0.1,65832.0,65831.0,0.32922857]
[1718876333784,0.14634362,65834.0,65831.0,0.32922857]
[1718876333955,0.14634362,65834.0,65833.0,0.01238]
[1718876334139,0.14634362,65834.0,65833.0,0.03942455]
[1718876334348,0.14634362,65834.0,65833.0,0.04550765]
[1718876334541,0.04634362,65834.0,65833.0,0.04550765]
[1718876335631,0.04634362,65834.0,65833.0,0.04650765]
[1718876335837,0.04634362,65834.0,65833.0,0.04750765]
[1718876340085,0.04634362,65834.0,65833.0,0.32750665]
[1718876340287,0.04634362,65834.0,65833.0,1.02490465]
[1718876341112,0.04634362,65834.0,65833.0,1.02390465]
[1718876341393,0.04634362,65834.0,65833.0,1.02590465]
[1718876341594,0.04634362,65834.0,65833.0,0.72210565]
[1718876342382,0.04634362,65834.0,65833.0,0.72110565]
[1718876342786,0.04634362,65834.0,65833.0,0.72310565]
[1718876344756,0.00086,65834.0,65833.0,0.72310565]
[1718876344908,0.00086,65834.0,65833.0,1.17946577]
[1718876361370,0.00086,65834.0,65833.0,1.58526477]
[1718876362403,0.00086,65834.0,65833.0,1.58326477]
[1718876362608,0.00086,65834.0,65833.0,1.59426477]
[1718876362995,0.00086,65834.0,65833.0,1.59226477]
[1718876363414,0.00086,65834.0,65833.0,1.60326477]
[1718876363612,0.00086,65834.0,65833.0,1.59226477]
[1718876363994,0.00086,65834.0,65833.0,1.59526477]
[1718876364406,0.00086,65834.0,65833.0,1.60926477]
[1718876370816,0.00086,65834.0,65833.0,1.66786477]
[1718876371683,0.00086,65834.0,65833.0,1.56586477]
[1718876371900,0.00086,65834.0,65833.0,1.66786477]
[1718876372108,0.00086,65834.0,65833.0,1.70878177]
[1718876372534,0.00086,65834.0,65833.0,1.60678177]
[1718876373279,0.00086,65834.0,65833.0,1.54818177]
[1718876373517,0.00086,65834.0,65833.0,1.60678177]
[1718876373750,0.00086,65834.0,65833.0,1.70878177]
[1718876373908,0.00086,65834.0,65833.0,1.65018177]
[1718876374109,0.00086,65834.0,65833.0,1.70878177]
[1718876374308,0.00086,65834.0,65833.0,1.60678177]
[1718876374508,0.00086,65834.0,65833.0,1.69478177]
[1718876374774,0.00086,65834.0,65833.0,1.68078177]
[1718876374903,0.00086,65834.0,65833.0,1.69478177]
[1718876375308,0.00086,65834.0,65833.0,1.63618177]
[1718876375508,0.00086,65834.0,65833.0,1.69478177]
[1718876376195,0.00086,65834.0,65833.0,1.70878177]
[1718876379406,0.00086,65834.0,65833.0,1.60678177]
[1718876379667,0.00086,65834.0,65833.0,1.70878177]
[1718876380343,0.00086,65834.0,65833.0,1.65018177]
[1718876380562,0.00086,65834.0,65833.0,1.70878177]
[1718876381764,0.00086,65834.0,65833.0,1.54818177]
[1718876381988,0.00086,65834.0,65833.0,1.60678177]
[1718876382251,0.00086,65834.0,65833.0,1.56586477]
[1718876383201,0.00086,65834.0,65833.0,1.66786477]
[1718876386751,0.00086,65834.0,65833.0,1.60926477]
[1718876386975,0.00086,65834.0,65833.0,1.66786477]
[1718876387421,0.00086,65834.0,65833.0,1.50726477]
[1718876387625,0.00086,65834.0,65833.0,1.56586477]
[1718876388059,0.00086,65834.0,65833.0,1.66786477]
[1718876388655,0.00086,65834.0,65833.0,1.56586477]
[1718876388895,0.00086,65834.0,65833.0,1.66786477]
[1718876390266,0.00086,65834.0,65833.0,1.60926477]
[1718876390502,0.00086,65834.0,65833.0,1.66786477]
[1718876392440,0.00086,65834.0,65833.0,1.60926477]
[1718876392607,0.00086,65834.0,65833.0,1.66786477]
[1718876400628,0.00086,65834.0,65833.0,1.60926477]
[1718876400936,0.00086,65834.0,65833.0,1.66786477]
[1718876401146,0.00086,65834.0,65833.0,1.71786477]
[1718876401366,0.00086,65834.0,65833.0,1.76786477]
[1718876401574,0.00086,65834.0,65833.0,1.89407652]
[1718876401808,0.00086,65834.0,65833.0,2.35817552]
[1718876402232,0.00086,65834.0,65833.0,2.66716843]
[1718876402402,0.00086,65839.0,65838.0,1.751667]
[1718876402642,0.00086,65839.0,65838.0,2.45339401]
[1718876402812,0.00086,65839.0,65838.0,2.4594528]
[1718876404480,0.00086,65839.0,65838.0,2.4734528]
[1718876405764,0.00086,65839.0,65838.0,2.4874528]
[1718876406764,0.00086,65839.0,65838.0,2.36124105]
[1718876411960,0.00086,65839.0,65838.0,1.89686605]
[1718876412161,0.00086,65839.0,65838.0,1.38279105]
[1718876412408,0.00086,65839.0,65838.0,0.25899991]
[1718876412612,0.00086,65839.0,65838.0,0.46948691]
[1718876413560,0.02756,65839.0,65838.0,0.26759991]
[1718876413750,0.02756,65839.0,65838.0,0.20899991]
[1718876413961,0.02756,65839.0,65838.0,0.18099991]
[1718876414158,0.02756,65839.0,65838.0,0.24304326]
[1718876414375,0.02756,65839.0,65838.0,0.27104326]
[1718876414747,0.02756,65839.0,65838.0,0.25704326]
[1718876414926,0.02744514,65839.0,65838.0,0.25704326]
[1718876415142,0.02744514,65839.0,65838.0,0.27104326]
[1718876415405,0.04678399,65853.0,65851.0,0.01238]
[1718876417596,0.04678399,65853.0,65852.0,0.01238]
[1718876417797,0.5079957,65855.0,65851.0,0.01238]
[1718876417994,0.5079957,65855.0,65851.0,0.03138]
[1718876417995,0.0586,65853.0,65851.0,0.03138]
[1718876418605,0.0586,65853.0,65852.0,0.00579422]
[1718876418804,0.0586,65853.0,65852.0,0.01479422]
[1718876419182,0.0586,65853.0,65852.0,0.009]
[1718876419547,0.0586,65853.0,65851.0,0.01]
[1718876419727,0.0586,65853.0,65851.0,0.019]
[1718876420449,0.0586,65853.0,65851.0,0.009]
[1718876420576,0.0586,65853.0,65852.0,0.01]
[1718876420995,0.0586,65853.0,65851.0,0.009]
[1718876421210,0.0596,65853.0,65851.0,0.009]
[1718876421403,0.0596,65853.0,65848.0,0.01238]
[1718876421639,0.0586,65850.0,65848.0,0.01238]
[1718876421831,0.0586,65850.0,65849.0,0.00579607]
[1718876422208,0.0586,65850.0,65848.0,0.01238]
[1718876422455,0.0586,65850.0,65847.0,0.01238]
[1718876422650,0.0586,65850.0,65849.0,0.00579607]
[1718876422852,0.0586,65850.0,65848.0,0.01238]
[1718876422853,0.0586,65850.0,65848.0,0.01817669]
[1718876423101,0.0586,65850.0,65848.0,0.01238]
[1718876423268,0.0586,65850.0,65849.0,0.00579607]
[1718876423719,0.0586,65850.0,65839.0,0.45855736]
[1718876423720,0.1586,65850.0,65839.0,0.45855736]
[1718876423881,0.0586,65844.0,65840.0,0.01238]
[1718876424084,0.0586,65844.0,65840.0,0.01818934]
[1718876424723,0.1,65846.0,65842.0,0.01238]
[1718876424875,0.0586,65844.0,65841.0,0.01238]
[1718876425082,0.0586,65844.0,65842.0,0.00580845]
[1718876425569,0.0586,65844.0,65843.0,0.00580783]
[1718876425860,0.0586,65844.0,65840.0,0.03438]
[1718876426048,0.0586,65844.0,65843.0,0.00580783]
[1718876426243,0.0586,65844.0,65840.0,0.02338]
[1718876426422,0.0586,65844.0,65843.0,0.00580894]
[1718876426674,0.0586,65844.0,65842.0,0.011]
[1718876426872,0.0586,65844.0,65843.0,0.00580894]
[1718876427298,0.0586,65844.0,65842.0,0.011]
[1718876427661,0.0586,65844.0,65840.0,0.01238]
[1718876427978,0.0586,65844.0,65842.0,0.011]
[1718876428734,0.0586,65844.0,65839.0,0.01238]
[1718876428851,0.0586,65844.0,65842.0,0.011]
[1718876429752,0.0586,65844.0,65840.0,0.01238]
[1718876430160,0.0586,65844.0,65841.0,0.00581048]
[1718876431182,0.1586,65844.0,65841.0,0.00581048]
[1718876431399,0.1586,65844.0,65841.0,0.02919048]
[1718876431604,0.1586,65844.0,65841.0,0.03116411]
[1718876432031,0.1586,65844.0,65841.0,0.04216411]
[1718876432216,0.1586,65844.0,65841.0,0.02978411]
[1718876432416,0.0586,65844.0,65841.0,0.02978411]
[1718876433998,0.1,65845.0,65842.0,0.01238]
[1718876434212,0.09100427,65846.0,65842.0,0.01238]
[1718876434213,0.0586,65844.0,65842.0,0.01238]
[1718876434711,0.0586,65844.0,65841.0,0.022]
[1718876434916,0.0586,65844.0,65841.0,0.011]
[1718876435124,0.0586,65844.0,65842.0,0.00778482]
[1718876435297,0.0586,65844.0,65842.0,0.01678482]
[1718876435515,0.0586,65844.0,65842.0,0.009]
[1718876435748,0.0586,65844.0,65842.0,0.011]
[1718876438403,0.0586,65844.0,65842.0,0.022]
[1718876439488,0.1,65846.0,65842.0,0.03438]
[1718876439692,0.0586,65843.0,65842.0,0.03438]
[1718876439896,0.0586,65843.0,65842.0,0.022]
[1718876440265,0.1,65844.0,65842.0,0.022]
[1718876440466,0.0586,65843.0,65842.0,0.022]
[1718876441374,0.0586,65843.0,65842.0,0.011]
[1718876441559,0.0586,65843.0,65840.0,0.01238]
[1718876441805,0.0586,65843.0,65835.0,0.14127915]
[1718876441806,0.13488172,65843.0,65842.0,0.012]
[1718876442006,0.123,65843.0,65842.0,0.012]
[1718876442208,0.1816,65843.0,65842.0,0.012]
[1718876442407,0.1816,65843.0,65842.0,0.024]
[1718876442543,0.1816,65843.0,65837.0,0.01238]
[1718876442745,0.0586,65840.0,65837.0,0.01238]
[1718876443383,0.0586,65840.0,65835.0,0.01238]
[1718876443588,0.0586,65840.0,65837.0,0.01238]
[1718876443765,0.0586,65840.0,65838.0,0.00778944]
[1718876444554,0.0586,65840.0,65837.0,0.01238]
[1718876444847,0.0586,65840.0,65838.0,0.00778944]
[1718876445231,0.0586,65840.0,65838.0,0.01778944]
[1718876445658,0.0586,65840.0,65838.0,0.00778944]
[1718876445886,0.09092728,65842.0,65838.0,0.00778944]
[1718876446062,0.0586,65839.0,65838.0,0.00778944]
[1718876446242,0.0586,65839.0,65834.0,0.000946]
[1718876446443,0.0586,65839.0,65834.0,0.01605306]
[1718876446676,0.0586,65839.0,65838.0,0.02]
[1718876447011,0.0586,65839.0,65838.0,0.02778944]
[1718876447889,0.0586,65839.0,65838.0,0.01778944]
[1718876448081,0.0586,65839.0,65838.0,0.01]
[1718876448267,0.0586,65839.0,65838.0,0.017]
[1718876448468,0.0586,65839.0,65838.0,0.01]
[1718876448710,0.0586,65839.0,65834.0,0.01605306]
[1718876448892,0.1,65841.0,65838.0,0.011]
[1718876449093,0.0586,65839.0,65838.0,0.011]
[1718876449902,0.1,65841.0,65838.0,0.011]
[1718876450113,0.0586,65839.0,65838.0,0.011]
[1718876450692,0.0586,65839.0,65838.0,0.011946]
[1718876452063,0.0586,65839.0,65838.0,0.019946]
[1718876452661,0.0586,65839.0,65838.0,0.011946]
[1718876452884,0.1,65840.0,65838.0,0.022946]
[1718876453113,0.0586,65839.0,65838.0,0.022946]
[1718876453705,0.14952301,65839.0,65838.0,0.022946]
[1718876453959,0.24952301,65839.0,65838.0,0.022946]
[1718876454900,0.24952301,65839.0,65838.0,0.011946]
[1718876455263,0.21392301,65839.0,65838.0,0.020946]
[1718876455473,0.1816,65839.0,65838.0,0.020946]
[1718876455836,0.29525376,65839.0,65838.0,0.011946]
[1718876456191,0.29525376,65839.0,65838.0,0.022946]
[1718876456577,0.29525376,65839.0,65838.0,0.000946]
[1718876457012,0.1816,65839.0,65838.0,0.006946]
[1718876457218,0.0816,65839.0,65838.0,0.006946]
[1718876457625,0.023,65839.0,65838.0,0.006946]
[1718876457840,0.32101717,65839.0,65838.0,0.006946]
[1718876458060,5.12658117,65839.0,65838.0,0.006946]
[1718876458467,5.1633735,65839.0,65838.0,0.006946]
[1718876458883,5.39088032,65839.0,65838.0,0.006946]
[1718876459057,5.44948032,65839.0,65838.0,0.006946]
[1718876464966,5.39088032,65839.0,65838.0,0.006946]
[1718876465144,5.44948032,65839.0,65838.0,0.006946]
[1718876469892,5.58586484,65839.0,65838.0,0.006946]
[1718876470098,0.1,65838.0,65834.0,0.000946]
[1718876470280,0.19526024,65835.0,65834.0,0.000946]
[1718876470494,0.1816,65835.0,65834.0,0.000946]
[1718876470701,4.987164,65835.0,65834.0,0.000946]
[1718876470954,0.2933898,65835.0,65834.0,0.000946]
[1718876471093,5.11157218,65835.0,65834.0,0.000946]
[1718876471502,5.12658117,65835.0,65834.0,0.000946]
[1718876472153,0.3578095,65835.0,65834.0,0.000946]
[1718876472358,5.03896532,65835.0,65834.0,0.000946]
[1718876472583,0.34280051,65835.0,65834.0,0.000946]
[1718876472849,5.1633735,65835.0,65834.0,0.000946]
[1718876473088,5.1047735,65835.0,65834.0,0.000946]
[1718876473353,5.1633735,65835.0,65834.0,0.000946]
[1718876474323,5.44948032,65835.0,65834.0,0.000946]
[1718876475158,5.39088032,65835.0,65834.0,0.000946]
[1718876475331,5.44948032,65835.0,65834.0,0.000946]
[1718876475810,5.44940847,65835.0,65834.0,0.000946]
[1718876478063,5.44930953,65835.0,65834.0,0.000946]
[1718876481351,5.44930953,65835.0,65825.0,0.1073]
[1718876481554,0.0586,65826.0,65825.0,0.1073]
[1718876481698,0.1816,65826.0,65825.0,0.1073]
[1718876481892,0.1816,65826.0,65825.0,0.11510526]
[1718876482168,0.1816,65826.0,65825.0,0.1073]
[1718876482357,0.1816,65826.0,65825.0,0.11510526]
[1718876483144,0.1816,65826.0,65825.0,0.12710526]
[1718876483352,0.29542087,65826.0,65825.0,0.12710526]
[1718876483736,0.29642087,65826.0,65825.0,0.13910526]
[1718876486459,0.29642087,65826.0,65825.0,0.03180526]
[1718876486835,0.1826,65826.0,65825.0,0.024]
[1718876487068,0.0826,65826.0,65825.0,0.024]
[1718876487484,0.22192238,65826.0,65825.0,0.012]
[1718876487692,0.5,65825.0,65821.0,0.198646]
[1718876487901,0.123,65824.0,65821.0,0.198646]
[1718876488106,0.0586,65822.0,65821.0,0.198646]
[1718876488230,0.0816,65822.0,65821.0,0.198646]
[1718876488641,0.1816,65822.0,65821.0,0.198646]
[1718876488837,0.123,65822.0,65821.0,0.198646]
[1718876489104,0.1816,65822.0,65821.0,0.20645703]
[1718876489733,0.18021998,65822.0,65821.0,0.20845703]
[1718876489927,0.08021998,65822.0,65821.0,0.20845703]
[1718876490103,0.18021998,65822.0,65821.0,0.20845703]
[1718876491112,0.08021998,65822.0,65821.0,0.20845703]
[1718876491307,0.08021998,65822.0,65821.0,0.21045703]
[1718876491805,0.08021998,65822.0,65821.0,0.01275703]
[1718876492032,0.08021998,65822.0,65821.0,0.117446]
[1718876492208,0.08021998,65822.0,65821.0,0.12525703]
[1718876492406,0.08021998,65822.0,65821.0,0.01275703]
[1718876492615,0.08021998,65822.0,65821.0,0.01075703]
[1718876492817,0.08021998,65822.0,65821.0,0.00875703]
[1718876493076,0.08521998,65822.0,65821.0,0.00875703]
[1718876493644,0.08321998,65822.0,65821.0,0.00875703]
[1718876493851,0.18321998,65822.0,65821.0,0.00875703]
[1718876494163,0.18521998,65822.0,65821.0,0.000946]
[1718876494367,0.68221998,65822.0,65821.0,0.000946]
[1718876494560,0.18221998,65822.0,65821.0,0.000946]
[1718876494751,0.18421998,65822.0,65821.0,0.00875703]
[1718876494944,0.18421998,65822.0,65821.0,0.00499979]
[1718876494945,0.53955642,65822.0,65821.0,0.00499979]
[1718876495143,0.31306282,65822.0,65812.0,0.1125]
[1718876495379,0.31306282,65822.0,65810.0,0.1125]
[1718876495380,0.0586,65813.0,65810.0,0.1125]
[1718876495522,0.11370789,65811.0,65810.0,0.1125]
[1718876495731,0.23670789,65811.0,65810.0,0.1125]
[1718876495939,5.16876549,65811.0,65810.0,0.1125]
[1718876496148,5.0550576,65811.0,65810.0,0.1125]
[1718876496390,0.36320149,65811.0,65810.0,0.1125]
[1718876496626,0.1816,65811.0,65810.0,0.1125]
[1718876496898,0.29530789,65811.0,65810.0,0.1125]
[1718876497360,0.1816,65811.0,65810.0,0.1205]
[1718876498149,0.1826,65811.0,65810.0,0.1295]
[1718876499241,0.27351655,65811.0,65810.0,0.1295]
[1718876499654,0.27351655,65811.0,65810.0,0.017]
[1718876500520,0.1826,65811.0,65810.0,0.017]
[1718876500669,0.29630789,65811.0,65810.0,0.017]
[1718876501398,0.29630789,65811.0,65806.0,0.1045]
[1718876501603,0.29630789,65811.0,65797.0,0.44617736]
[1718876501604,0.1722032,65807.0,65803.0,0.1045]
[1718876501805,0.1722032,65807.0,65802.0,0.089]
[1718876501806,0.0586,65804.0,65802.0,0.089]
[1718876502220,0.023,65803.0,65802.0,0.089]
[1718876502363,4.828564,65803.0,65802.0,0.089]
[1718876502565,5.5550576,65803.0,65802.0,0.089]